Cogmind - Beta 13 @@@ ROGUE MODE // 2024.05.25 @ 18:43:06 Player: Tun Result: Destroyed by G-34 Mercenary with Small Laser Performance ------------- Evolutions (1) 500 Regions Visited (2) 400 Robots Destroyed (18) 90 Value Destroyed (471) 471 Prototype IDs (0) 0 Alien Tech Used (0) 0 Bonus (0) 0 TOTAL SCORE: 1461 Bonus ------- None Cogmind --------- Core Integrity 0/400 Matter 300/300 Energy 100/100 System Corruption 3% Temperature Cool (6) Movement Core (100) Ox1 Location -9/Materials Parts ------- > --- POWER (1) -------- (None) > --- PROPULSION (4) --- (None) > --- UTILITY (2) ------ Small Storage Unit > --- WEAPON (2) ------- (None) > --- INVENTORY (8) ---- Small Storage Unit ECM Suite Peak State ------------ > --- POWER ------------ Light Ion Engine > --- PROPULSION ------- Light Treads Light Treads Wheel Wheel > --- UTILITY ---------- Small Storage Unit ECM Suite > --- WEAPON ----------- Heavy Assault Rifle Grenade Launcher > --- INVENTORY -------- Flight Unit Small Storage Unit Assault Rifle Assault Rifle [Rating: 10] Favorites ----------- Power Light Ion Engine Engine Light Ion Engine Propulsion Wheel Treads Light Treads Leg Aluminum Leg Wheel Wheel Utility ECM Suite Device ECM Suite Storage Small Storage Unit Protection Medium Armor Plating Weapon Grenade Launcher Ballistic Gun Heavy Assault Rifle Launcher Grenade Launcher Build | -11 -10 -9 ------- Run | Yrd Mat Mat Slots Evolved 2 | . . 2 Power . | . . . Propulsion 2 | . . 2 Utility . | . . . Weapon . | . . . Parts Attached 28 | 10 8 10 Power 5 | 2 1 2 Engine 5 | 2 1 2 Core . | . . . Reactor . | . . . Propulsion 13 | 6 3 4 Treads 4 | . . 4 Leg 1 | 1 . . Wheel 8 | 5 3 . Hover . | . . . Flight . | . . . Utility 4 | . 2 2 Device 1 | . 1 . Storage 2 | . 1 1 Processor . | . . . Hackware . | . . . Protection 1 | . . 1 Artifact . | . . . Weapon 6 | 2 2 2 Energy Gun . | . . . Energy Cannon . | . . . Ballistic Gun 5 | 2 1 2 Ballistic Cannon . | . . . Launcher 1 | . 1 . Special Weapon . | . . . Impact Weapon . | . . . Slashing Weapon . | . . . Piercing Weapon . | . . . Special Melee Weapon . | . . . Unidentified Prototypes . | . . . Parts Lost 15 | . 3 12 Power 3 | . 1 2 Propulsion 6 | . 2 4 Utility 2 | . . 2 Weapon 4 | . . 4 Highest Loss Streak 8 | . 3 8 To Critical Strikes . | . . . Average Slot Usage (%) 72 | . 67 76 Engine 8 | . 6 9 Treads 13 | . . 23 Wheel 13 | . 23 5 Device 7 | . 7 7 Storage 6 | . . 10 Protection 1 | . . 2 Ballistic Gun 12 | . 14 10 Launcher 9 | . 13 5 Naked Turns . | . . . Heaviest Build 21 | 7 13 21 Greatest Support 80 | 20 20 80 Greatest Overweight (x) 2 | 2 2 2 Average Overweight (x) . | . . . Largest Inventory Capacity 8 | 5 5 8 Average Capacity 6 | 5 5 7 Most Carried 6 | 2 5 6 Average Carried 3 | . 3 3 Final Capacity 8 | 5 5 8 Final Carried 4 | 2 4 2 Class Distribution -------------------- 71% | Mutant 28% | Scavenger-Mutant Dominant Class ---------------- Mutant | -10/Materials Scavenger-Mutant | -9/Materials Resources | -11 -10 -9 ----------- Run | Yrd Mat Mat Matter Collected 545 | 306 135 104 Remotely . | . . . Salvage Created 377 | 64 207 106 Parts 41 | 6 23 12 Haulers Intercepted . | . . . Recyclers Shooed 1 | . 1 . Parts Field Recycled . | . . . Retrieved Matter . | . . . Parts Self-Destructed . | . . . Prevented . | . . . Kills | -11 -10 -9 ------- Run | Yrd Mat Mat Combat Hostiles Destroyed 14 | 1 7 6 Melee 4 | . . 4 Guns 6 | 1 4 1 AOE 4 | . 3 1 Classes Destroyed 6 | 2 3 1 Worker 1 | 1 . . Builder 1 | . 1 . Watcher 2 | . 2 . Swarmer 4 | . 3 1 Grunt 7 | 1 4 2 Sentry 3 | . . 3 Best Kill Streak 5 | 1 5 2 Combat Bots Only 3 | 1 3 2 Max Kills in Single Turn 1 | 1 1 1 Gunslinging . | . . . Exploded 1 | . 1 1 Melee 1 | . . 1 Uniques/NPCs Destroyed . | . . . Combat | -11 -10 -9 -------- Run | Yrd Mat Mat Hostile Shots Fired 189 | 5 11 173 Missed 57 | 2 5 50 Damage Taken 2019 | 35 426 1558 Core 574 | . 165 409 Absorbed by Shields . | . . . Core Remaining (%) 67 | 100 34 . Volleys Fired 30 | 4 16 10 Largest 2 | 2 2 2 Hottest 53 | 40 53 53 Shots Fired 47 | 8 26 13 Gun 36 | 8 17 11 Cannon . | . . . Launcher 11 | . 9 2 Special . | . . . Kinetic 36 | 8 17 11 Thermal . | . . . Explosive 11 | . 9 2 Electromagnetic . | . . . Robot Hit Streak 5 | 3 4 5 Robot Miss Streak 5 | 1 5 1 Penetration Max . | . . . Secondary Targets . | . . . Shots Hit Robots 24 | 6 11 7 Core Hits 52 | 3 16 33 Critical Kills . | . . . Critical Parts Destroyed . | . . . Critical Strikes . | . . . Melee Attacks . | . . . Impact . | . . . Slashing . | . . . Piercing . | . . . Sneak Attacks . | . . . Combat Hostiles . | . . . Follow-up Attacks . | . . . Damage Inflicted 791 | 78 407 306 Guns 314 | 78 119 117 Cannons . | . . . Explosions 306 | . 288 18 Melee . | . . . Ramming 171 | . . 171 Kinetic 314 | 78 119 117 Thermal . | . . . Explosive 306 | . 288 18 Electromagnetic . | . . . Impact . | . . . Slashing . | . . . Piercing . | . . . Highest Corruption 5 | . 5 3 Average Corruption 4 | . 5 2 Corruption Purged . | . . . Corruption Blocked . | . . . Effects 7 | . 6 1 Message Errors 1 | . 1 . Energy Discharges 1 | . 1 . Data Loss (minor) 2 | . 2 . Data Loss (major) 2 | . 1 1 Misfires 1 | . 1 . Overload Shots . | . . . Overflow Damage . | . . . Projectiles . | . . . Explosions . | . . . Melee . | . . . Knockbacks 1 | . . 1 Impact 1 | . . 1 Kinetic . | . . . Secondary . | . . . Self-Inflicted Damage 43 | . 22 21 Shots 1 | . 1 . Rammed 89 | . . 89 Targets Rammed 91 | . . 91 Kicked . | . . . Crushed 2 | . . 2 Highest Temperature 8 | . 3 8 Average Temperature 4 | . 3 4 Received Heat Transfer 588 | 18 12 558 Siege Activations . | . . . Robots Corrupted . | . . . Combat Hostiles . | . . . Parts Fried . | . . . Impact Corruptions . | . . . Robots Melted . | . . . Combat Hostiles . | . . . Parts Melted . | . . . Heat Transferred . | . . . Parts Sabotaged . | . . . Parts Stolen . | . . . Parts Stripped . | . . . Power Chain Reactions . | . . . Alert | -11 -10 -9 ------- Run | Yrd Mat Mat Peak Influence 321 | 25 303 321 Initial 117 | . 16 117 Average 178 | 4 213 198 Maximum Alert Level 1 | . 1 1 Low Security (%) 44 | 100 29 39 Level 1 55 | . 70 60 Level 2 . | . . . Level 3 . | . . . Level 4 . | . . . Level 5 . | . . . High Security . | . . . Max Security . | . . . Squads Dispatched 3 | . 2 1 Investigation 1 | . 1 . Extermination . | . . . Reinforcement 2 | . 1 1 Assault . | . . . Garrison . | . . . Intercept . | . . . Searches Triggered . | . . . Construction Impeded . | . . . Haulers Reinforced . | . . . Active Scanning Responses . | . . . Cargo Convoy Interrupts . | . . . Stealth | -11 -10 -9 --------- Run | Yrd Mat Mat Distress Signals 2 | . 1 1 Communications Jammed . | . . . Distress Signals . | . . . Times Spotted 30 | 1 7 22 Peak Tracking Total 7 | 1 2 7 Tactical Retreats 1 | . . 1 Traps | -11 -10 -9 ------- Run | Yrd Mat Mat Traps Triggered 1 | . 1 . Indirectly . | . . . Trap Hack Attempts . | . . . Triggered . | . . . Disarmed . | . . . Reprogrammed . | . . . Reused . | . . . Traps Extracted . | . . . Installed . | . . . Triggered . | . . . Machines | -11 -10 -9 ---------- Run | Yrd Mat Mat Machines Disabled 2 | . 2 . Max in Single Turn 1 | . 1 . Machines Repaired . | . . . Machines Dismantled . | . . . Machines Sabotaged . | . . . Overloaded Fab Kills . | . . . Hacking | -11 -10 -9 --------- Run | Yrd Mat Mat Machines Accessed 2 | . 1 1 Terminals 1 | . 1 . Fabricators . | . . . Repair Stations . | . . . Recycling Units . | . . . Scanalyzers 1 | . . 1 Garrison Access . | . . . Total Hacks 4 | . 2 2 Successful 4 | . 2 2 Failed . | . . . Catastrophic . | . . . Database Lockouts . | . . . Manual 1 | . . 1 Terminals 2 | . 2 . Fabricators . | . . . Repair Stations . | . . . Recycling Units . | . . . Scanalyzers 2 | . . 2 Garrison Access . | . . . Terminal Hacks 2 | . 2 . Record 2 | . 2 . Fabricator Hacks . | . . . Repair Station Hacks . | . . . Recycling Unit Hacks . | . . . Scanalyzer 2 | . . 2 Insert Component 1 | . . 1 Analyze 1 | . . 1 Garrison Access Hacks . | . . . Unauthorized Hacks . | . . . Terminals . | . . . Fabricators . | . . . Repair Stations . | . . . Recycling Units . | . . . Scanalyzers . | . . . Garrison Access . | . . . Data Cores Recovered . | . . . Used . | . . . Hacking Detections 2 | . 1 1 Full Trace Events . | . . . Feedback Events . | . . . Feedback Blocked . | . . . Robot Schematics Acquired . | . . . Robots Built . | . . . Authchips . | . . . Time . | . . . Total Robot Build Rating . | . . . Part Schematics Acquired 1 | . . 1 Parts Built . | . . . Authchips . | . . . Time . | . . . Total Part Build Rating . | . . . Parts Repaired . | . . . Time . | . . . Parts Recycled . | . . . Recycled Matter . | . . . Retrieved Matter . | . . . Retrieved Components . | . . . Parts Scanalyzed 1 | . . 1 Part Schematics Acquired 1 | . . 1 Parts Damaged . | . . . Bothacking | -11 -10 -9 ------------ Run | Yrd Mat Mat Used RIF Installer . | . . . Robots Hacked . | . . . Non-combat . | . . . Combat . | . . . Robot Hacks Applied . | . . . Relay Couplers Released . | . . . Fabnet Peak Effective % . | . . . Robots Rewired . | . . . Allies Hacked . | . . . Hacks Repelled . | . . . Allies | -11 -10 -9 -------- Run | Yrd Mat Mat Total Allies . | . . . Largest Group . | . . . Highest-Rated Group . | . . . Highest-Rated Ally . | . . . Total Orders . | . . . Ally Attacks . | . . . Total Damage . | . . . Kills . | . . . Allies Corrupted . | . . . Allies Melted . | . . . Intel | -11 -10 -9 ------- Run | Yrd Mat Mat Robot Analysis Total . | . . . Derelict Logs Recovered . | . . . Drone Launches . | . . . Drone Recoveries . | . . . Exploration | -11 -10 -9 ------------- Run | Yrd Mat Mat Turns Passed 1002 | 137 387 478 Spaces Moved 645 | 146 309 190 Core 172 | 58 106 8 Treads 104 | . . 104 Legs 7 | 7 . . Wheels 362 | 81 203 78 Hover . | . . . Flight . | . . . Fastest Speed 50 | 50 80 80 Average Speed 100 | 71 99 125 Slowest Speed 160 | 150 150 160 Overloaded Moves . | . . . Propulsion Burnouts . | . . . Robots Hopped . | . . . Cave-ins Triggered 1 | . 1 . Exploration Rate (%) 20 | 5 36 19 Regions Visited 2 Branch Regions . Pre-discovered Areas . | . . . Known Exits Taken . | . . . Unknown Exits Taken 2 | 1 1 . Scrap Searched . | . . . Spaces Dug . | . . . Terrain Destroyed 68 | . 50 18 Melee . | . . . Projectile . | . . . AOE 68 | . 50 18 Terrain Rammed . | . . . Walls Destroyed . | . . . Machines Disabled . | . . . Actions | -11 -10 -9 --------- Run | Yrd Mat Mat Total 907 | 169 363 375 Wait 80 | 3 17 60 Move 643 | 145 308 190 Hop . | . . . Pick Up 7 | . 5 2 Fast Attach 27 | 9 8 10 Attach 1 | 1 . . Detach 12 | 5 3 4 Swap . | . . . Drop 16 | 2 6 8 Fire 30 | 4 16 10 Melee . | . . . Ram 19 | . . 19 Kick . | . . . Crush 72 | . . 72 Escape Stasis . | . . . Rewire . | . . . Trap . | . . . Miscellaneous . | . . . Route ------- -11/Scrapyard -10/Materials -9/Materials History --------- Turn | Location | Event 2 | -11/Scrapyard | Met Revision 17 115 | -11/Scrapyard | Discovered new exit (range 8) 138 | -11/Scrapyard | Entered Materials 289 | -10/Materials | Crushed by falling debris 289 | -10/Materials | Core integrity fell below 50% 318 | -10/Materials | Build established: Mutant 320 | -10/Materials | Lost 3 parts (1p2n) 470 | -10/Materials | Discovered new exit (range 12) 525 | -10/Materials | Entered another Materials area 525 | -9/Materials | Evolved 2 slots: Propulsion x2 832 | -9/Materials | Lost 3 parts (1n2w) 975 | -9/Materials | Core integrity fell below 50% 996 | -9/Materials | Core integrity fell below 20% 1003 | -9/Materials | Destroyed by G-34 Mercenary with Small Laser Last Messages --------------- 00974_ M-13 Machinist repairs Heat Sink. 00974_ K-01 Serf collects debris. 00974_ Slammed into G-34 Mercenary. 00974_ Destabilizing: System corrupted (+1). 00975_ Dropped Lgt. Ion Engine. 00977_ Acquired Lgt. Ion Engine. 00980_ Slammed into G-34 Mercenary. 00981_ Acquired 1 matter. 00982_ K-01 Serf collects debris. 00982_ Lgt. Ion Engine destroyed. 00984_ Slammed into W-16 Scout. 00990_ Slammed into B-36 Bruiser. 00998_ Slammed into G-34 Mercenary. 01001_ System corrupted: Substantial component data lost. 01001_ Slammed into G-34 Mercenary. 01002_ Slammed into Y-45 Defender. 01003_ Slammed into S-10 Pest. 01003_ S-10 Pest destroyed. [Achievement: First Step to Greatness] Map ----- +----------------------------------------------------+ | ?????????????????????????????????????????????????? | | ?????????????????????????????????????????????????? | | ?????????????????????????????????????????????????? | | ?????????????????????????????????????????????????? | | ?????????????????????????????????????????????????? | | ?????????????????????????????????????????????????? | | ?????????????????????????????????????????????????? | | ######????########+###???????????????????????????? | | ###### #???????????????????????????? | | ! [! #???????????????????????????? | | [ == #???????????????????????????? | | * #???????????????????????????? | | ### ###### ### #???????????????????????????? | | #?## #??###### ##???????????????????????????? | | ???# ""=#???????# #????????????????????????????? | | ???# "T #???????# #????????????????????????????? | | ???# ""=######### #????????????????????????????? | | ???# # #################????????????? | | ???# # ^ ???????????? | | ???# # ^ ???????????? | | ???# # "T" ???????????? | | ???# # ###########??????????????? | | ???###### "" # #???????????????? | | ????????#^ "" ^ # """ #???????????????? | | ??????### """ % #%= """ #???????????????? | | ??????# %%%% #@g """ #???????????????? | | ??????# % %/Y% #???????????????? | | ??????# %% t #bg "" #???????????????? | | ??????##+########+#### ##%% S"" #???????????????? | | ?????????????# %%%%%%# ## % "" #???????????????? | | ?????????????# "=%%%%# ## #???????????????? | | ?????????????# T%%%%%# ## ########???????????????? | | ?????????????# "=%%%%# ####??????????????????????? | | ?????????????# =% # #?????????????????????????? | | ?????????????# # #?????????????????????????? | | ?????????????# # #?????????????????????????? | | ?????????????# """# ??????????????????????????? | | ?????????????# """# ??????????????????????????? | | ?????????????# """# ??????????????????????????? | | ?????????????#= # ??????????????????????????? | | ?????????????##### ### ??????????????????????????? | | ?????????????????###??/??????????????????????????? | | ?????????????????????? ??????????????????????????? | | ?????????????????????????????????????????????????? | | ?????????????????????????????????????????????????? | | ?????????????????????????????????????????????????? | | ?????????????????????????????????????????????????? | | ?????????????????????????????????????????????????? | | ?????????????????????????????????????????????????? | | ?????????????????????????????????????????????????? | +----------------------------------------------------+ Best States ------------- Heat Dissipation 28 Energy Generation 10 Energy Capacity 250 Matter Stores 300 Matter Capacity 400 Sight Range 16 Terrain Scan Density 10 ECM Strength 1 Armor Coverage 225 Evasion (%) 50 Recoil Reduction 4 Item Schematics ----------------- ECM Suite | -9/Materials | Scanalyzed Robot Schematics ------------------ None Fabricated ------------ Nothing Alien Tech Used ----------------- None Achievements -------------- First Step to Greatness Fist Fight Storm Trooper Uninvited Guest Unlikely Earthworm Challenges ------------ None Game ------ Seed BiomechanicalAssemblyWell Manual? 0 Play Time 00:25:36 Cumulative 0.3 hours Start 2024.05.25 @ 18:20:03 End 2024.05.25 @ 18:43:06 Sessions 1 Manual Loads 0 Difficulty Rogue Special Mode None Game No. 1 Rogue 1 Adventurer 0 Explorer 0 Win Type - Total 0 Types 0/0/0/0/0/0/0/0/0 Lore% 0 Gallery% 1 Achievement% 1 Wizard Run 0 Options --------- Layout 1 ASCII 0 Keyboard 1 Movement Numpad Keybinds 0 Fullscreen 1 Font 16/SmallcapsGlow Map View 55x38 Zoom Use 0% Tactical HUD 1 Map Filters NONE Filters NONE Steam 1 RUN: 294ecfab-812c-4d96-96db-1dcf72ed1c14